lending/lending_fUSD_20241214
["ID","MTS","AMOUNT","RATE_DAILY","PERIOD"]
[345306200,1734142344650,-500.0,0.00021248,3]
[345306201,1734142344659,-864.74,0.00021248,3]
[345306202,1734142344668,-513.27,0.00021248,3]
[345306203,1734142344678,-500.0,0.00021248,3]
[345306204,1734142344687,-513.27,0.00021248,3]
[345306205,1734142344696,-864.74,0.00021248,3]
[345306206,1734142344705,-500.0,0.00021248,3]
[345306207,1734142344714,-513.27,0.00021248,3]
[345306208,1734142344724,-864.79919044,0.00021248,3]
[345306209,1734142344734,-500.0,0.00021248,3]
[345306210,1734142344743,-513.27,0.00021248,3]
[345306211,1734142344753,-172.61478971,0.00021248,3]
[345306212,1734142344763,-513.27,0.00021248,3]
[345306213,1734142344772,-513.31470082,0.00021248,3]
[345306214,1734142344782,-1401.25,0.00021249,3]
[345306215,1734142344792,-1401.25,0.00021249,3]
[345306216,1734142344801,-1401.25,0.00021249,3]
[345306217,1734142344811,-1401.25,0.00021249,3]
[345306218,1734142344820,-1401.25,0.00021249,3]
[345306219,1734142344829,-1401.25,0.00021249,3]
[345306220,1734142344838,-1401.25,0.00021249,3]
[345306221,1734142344847,-1401.25,0.00021249,3]
[345306222,1734142344856,-1401.25,0.00021249,3]
[345306223,1734142344865,-1401.25,0.00021249,3]
[345306224,1734142344874,-1401.25,0.00021249,3]
[345306225,1734142344887,-1401.30782661,0.00021249,3]
[345306226,1734142344897,-500.0,0.00021249,2]
[345306227,1734142344907,-1076.4,0.00021249,3]
[345306228,1734142344917,-1076.4,0.00021249,3]
[345306229,1734142344926,-1076.4,0.00021249,3]
[345306230,1734142344935,-1076.4,0.00021249,3]
[345306231,1734142344945,-1076.4,0.00021249,3]
[345306232,1734142344955,-1076.4,0.00021249,3]
[345306233,1734142344964,-1076.4,0.00021249,3]
[345306234,1734142344973,-1076.4,0.00021249,3]
[345306235,1734142344983,-1076.4,0.00021249,3]
[345306236,1734142344992,-1076.4,0.00021249,3]
[345306237,1734142345001,-1076.4,0.00021249,3]
[345306238,1734142345011,-734.36154336,0.00021249,3]
[345306239,1734142345024,-342.23680359,0.00021249,3]
[345306240,1734142345033,-5617.7,0.00021249,3]
[345306241,1734142345042,-5617.7,0.00021249,3]
[345306242,1734142345052,-5617.7,0.00021249,3]
[345306243,1734142345061,-5617.7,0.00021249,3]
[345306244,1734142345071,-5617.7,0.00021249,3]
[345306245,1734142345080,-5617.7,0.00021249,3]
[345306246,1734142345090,-5617.7,0.00021249,3]
[345306247,1734142345099,-5617.7,0.00021249,3]
[345306248,1734142345109,-5617.7,0.00021249,3]
[345306249,1734142345121,-5617.7,0.00021249,3]
[345306250,1734142345131,-5617.7,0.00021249,3]
[345306251,1734142345141,-5617.76140759,0.00021249,3]
[345306252,1734142345151,-508.669,0.00021249,2]
[345306253,1734142345163,-697.15,0.00021249,3]
[345306254,1734142345173,-697.15,0.00021249,3]
[345306255,1734142345183,-697.15,0.00021249,3]
[345306256,1734142345193,-697.15,0.00021249,3]
[345306257,1734142345203,-697.15,0.00021249,3]
[345306258,1734142345212,-697.15,0.00021249,3]
[345306259,1734142345221,-697.15,0.00021249,3]
[345306260,1734142345231,-697.15,0.00021249,3]
[345306261,1734142345240,-697.15,0.00021249,3]
[345306262,1734142345249,-697.15,0.00021249,3]
[345306263,1734142345258,-697.15,0.00021249,3]
[345306264,1734142345267,-697.35,0.00021249,3]
[345306265,1734142345276,-1046.62997412,0.00021249,3]
[345306266,1734142345403,-16.79954899,0.00021249,3]
[345306267,1734142391160,6807.99616659,0.00010959,2]
[345306269,1734143058246,312.54,0.00010137,2]
[345306271,1734143108341,985406.63403417,0.0001,2]
[345306272,1734143134122,-312.54,0.00016813,2]
[345306273,1734143134144,-629.6406796,0.00017414,2]
[345306274,1734143134166,-207.10849043,0.00017414,2]
[345306275,1734143140099,-292.89150957,0.00017414,2]
[345306276,1734143140122,-536.02,0.00017856,2]
[345306277,1734143140145,-781.21432403,0.00018887,2]
[345306279,1734143162885,14773.18128029,9.8e-05,2]
[345306281,1734143209088,-403.26821654,0.00017,2]
[345306282,1734143228094,-2554.08128119,0.00015,2]
[345306284,1734143230158,-1351.56176216,0.00015,2]
[345306285,1734143237136,-160.45726011,0.00015,2]
[345306286,1734143237156,-2908.78018739,0.00017,2]
[345306301,1734143355210,-1694.28887512,0.00017,2]
[345306302,1734143367088,-789.46224669,0.00017314,2]
[345306303,1734143367110,-500.0,0.00017414,2]
[345306304,1734143415315,94.13036931,0.00017414,2]
[345306310,1734143432510,-405.86963069,0.00017414,2]
[345306311,1734143432519,-993.08325823,0.00017678,2]
[345306312,1734143432530,-949.21634178,0.00018,2]
[345306314,1734143432540,-181.23991122,0.00018978,2]
[345306316,1734143432549,-2020.0,0.00019078,2]
[345306318,1734143432558,-150.39845757,0.0001911,2]
[345306320,1734143432567,-153.151765,0.00019185,2]
[345306322,1734143432576,-500.0,0.00019606,2]
[345306324,1734143432585,-500.0,0.00019616,2]
[345306325,1734143432594,-164.01,0.00019686,30]
[345306326,1734143432603,-250.0,0.00019728,2]
[345306327,1734143432613,-1000.0,0.00019728,2]
[345306328,1734143432621,-250.0,0.00019773,2]
[345306329,1734143432634,-150.0,0.00019944,2]
[345306330,1734143432644,-265.0,0.0002,3]
[345306331,1734143432653,-264.0,0.0002,3]
[345306332,1734143432662,-347.46018935,0.0002,2]
[345306333,1734143432671,-176.1,0.00020025,2]
[345306334,1734143432679,-200.0,0.00020074,2]
[345306335,1734143432690,-23900.0,0.00020102,2]
[345306336,1734143432700,-396.75,0.00020106,2]
[345306337,1734143432710,-536.02,0.0002012,2]
[345306338,1734143432719,-928.33,0.00020151,2]
[345306339,1734143432731,-250.0,0.00020151,2]
[345306340,1734143432739,-164.99,0.00020151,2]
[345306341,1734143432749,-346.3,0.0002019,2]
[345306342,1734143432758,-500.0,0.00020209,2]
[345306343,1734143432768,-2184.0,0.0002043,2]
[345306344,1734143432778,-879.51,0.00020663,2]
[345306345,1734143432787,-150.0,0.00020672,2]
[345306346,1734143432796,-781.44,0.00020673,2]
[345306347,1734143432806,-769.02,0.00020673,2]
[345306348,1734143432815,-769.02,0.00020673,2]
[345306349,1734143432824,-769.02,0.00020673,2]
[345306350,1734143432834,-634.0,0.00020866,2]
[345306351,1734143432843,-132.86757616,0.00020888,2]
[345306352,1734143432956,-100.01243165,0.00020888,2]
[345306353,1734143432966,-317.96783173,0.00020888,2]
[345306354,1734143432993,-802.99197786,0.00020888,2]
[345306367,1734143438827,-999.60077697,0.00020866,2]
[345306368,1734143438838,-1002.576374,0.00020866,2]
[345306369,1734143438850,-1097.74872471,0.00020866,2]
[345306373,1734143440634,-500.60164236,0.00020866,2]
[345306374,1734143440773,-10131.47248196,0.00020866,2]
[345306375,1734143440783,-1799.635813,0.00020888,2]
[345306376,1734143440792,-200.0,0.00020889,2]
[345306377,1734143440801,-247.79694011,0.0002089,2]
[345306378,1734143440812,-1886.22687485,0.0002089,2]
[345306379,1734143440823,-442.61210009,0.0002089,2]
[345306380,1734143440894,-343.95970754,0.0002089,2]
[345306381,1734143440903,-6.16730428,0.00020895,2]
[345306391,1734143443707,-178.90965531,0.00018878,2]
[345306393,1734143443784,-44.80757956,0.00018878,2]
[345306394,1734143443940,-565.74501181,0.00018878,2]
[345306395,1734143443950,-571.09871029,0.00020866,2]
[345306401,1734143446571,-596.90128971,0.00020866,2]
[345306402,1734143446581,-150.428,0.00020866,2]
[345306403,1734143446591,-193.83269572,0.00020895,2]
[345306404,1734143446601,-254.27800955,0.00020895,2]
[345306405,1734143446611,-254.27800955,0.000209,2]
[345306406,1734143446620,-982.2,0.000209,2]
[345306407,1734143446630,-232.88000781,0.000209,2]
[345306408,1734143446640,-223.58405127,0.00020901,2]
[345306409,1734143446649,-223.58405127,0.00020901,2]
[345306410,1734143446658,-200.0,0.00020903,2]
[345306411,1734143446668,-200.0,0.0002091,2]
[345306412,1734143446678,-200.0,0.00020913,2]
[345306413,1734143446688,-181.23991122,0.00020914,2]
[345306414,1734143446700,-232.88000781,0.00020915,2]
[345306415,1734143446710,-2920.59562259,0.00020916,2]
[345306416,1734143446719,-223.58405127,0.00020923,2]
[345306417,1734143446728,-232.88000781,0.00020925,2]
[345306418,1734143446739,-2920.59562259,0.00020926,2]
[345306419,1734143446748,-254.27800955,0.00020927,2]
[345306420,1734143446757,-254.27800955,0.00020929,2]
[345306421,1734143446771,-232.88000781,0.00020934,2]
[345306422,1734143446780,-2920.59562259,0.00020936,2]
[345306423,1734143446790,-2920.59562259,0.00020942,2]
[345306424,1734143446800,-254.27800955,0.00020948,2]
[345306425,1734143446810,-161.36812636,0.00020995,2]
[345306426,1734143446819,-160.18851985,0.00020995,2]
[345306427,1734143446829,-266.14274865,0.00020995,2]
[345306428,1734143446838,-1000.0,0.00020995,2]
[345306429,1734143446848,-6922.0931,0.00020995,2]
[345306430,1734143446858,-5000.0,0.00020995,2]
[345306431,1734143446867,-161.36812628,0.00021014,2]
[345306432,1734143446876,-160.18851982,0.00021014,2]
[345306433,1734143446886,-161.36812628,0.00021034,2]
[345306434,1734143446895,-160.18851982,0.00021034,2]
[345306435,1734143446905,-3000.0,0.0002104,2]
[345306436,1734143446914,-161.36812628,0.00021053,2]
[345306437,1734143446924,-160.18851982,0.00021053,2]
[345306438,1734143446934,-161.36812628,0.00021073,2]
[345306440,1734143446943,-160.18851982,0.00021073,2]
[345306442,1734143446952,-161.36812628,0.00021092,2]
[345306443,1734143446961,-160.18851982,0.00021092,2]
[345306445,1734143446972,-155.68966974,0.00021094,2]
[345306446,1734143446982,-4453.26025251,0.00021095,2]
[345306447,1734143446994,-2038.16316543,0.00021095,2]
[345306454,1734143447139,-341.02638301,0.00021095,2]
[345306457,1734143447158,-5081.5,0.00021095,2]
[345306459,1734143447170,-299.44359905,0.00021095,2]
[345306461,1734143447179,-466.38137191,0.00021095,3]
[345306463,1734143447188,-500.0,0.00021095,3]
[345306465,1734143447198,-500.0,0.00021095,3]
[345306467,1734143447207,-502.95044242,0.00021095,3]
[345306469,1734143447216,-503.25048316,0.00021095,3]
[345306471,1734143447225,-501.27140533,0.00021095,3]
[345306473,1734143447234,-324.12942971,0.00021095,3]
[345306475,1734143447243,-158.43078755,0.00021095,2]
[345306477,1734143447252,-500.94174369,0.00021095,3]
[345306479,1734143447263,-500.46152367,0.00021095,3]
[345306481,1734143447272,-501.18748042,0.00021095,3]
[345306483,1734143447281,-390.84441404,0.00021095,3]
[345306485,1734143447291,-501.06501232,0.00021095,3]
[345306487,1734143447299,-501.88231025,0.00021095,3]
[345306489,1734143447309,-500.0,0.00021095,3]
[345306491,1734143447317,-76.35999448,0.00021095,3]
[345306493,1734143447329,-423.64000552,0.00021095,3]
[345306495,1734143447339,-500.0,0.00021095,3]
[345306497,1734143447348,-438.26000297,0.00021095,3]
[345306499,1734143447360,-61.73999703,0.00021095,3]
[345306501,1734143447370,-500.0,0.00021095,3]
[345306503,1734143447379,-389.26000297,0.00021095,3]
[345306510,1734144241900,160.03,0.00010137,2]
[345306512,1734144354117,-500.0,0.00017414,2]
[345306513,1734144354139,-482.41,0.00017874,2]
[345306514,1734144354159,-311.93358527,0.00019606,2]
[345306515,1734144354180,-250.0,0.00019895,2]
[345306516,1734144354201,-37.38266018,0.00019948,2]
[345306517,1734144443124,-212.61733982,0.00019948,2]
[345306518,1734144443149,-1000.0,0.00019992,2]
[345306519,1734144443174,-150.0,0.0002011,2]
[345306520,1734144443198,-176.1,0.00020122,2]
[345306521,1734144443222,-482.41,0.00020137,2]
[345306522,1734144443248,-250.0,0.0002016,2]
[345306523,1734144443272,-11.22731143,0.00020173,2]
[345306524,1734144606146,1579.9752958,0.00014281,7]
[345306525,1734144606169,3870.728638,0.00014281,7]
[345306526,1734144606193,1512.94164636,0.00014281,7]
[345306527,1734144606215,1617.21813421,0.00014281,7]
[345306528,1734144606238,400.87387344,0.00014281,7]
[345306538,1734144631772,-5104.5,0.00014281,7]
[345306539,1734144631970,-1602.97991199,0.00014281,7]
[345306540,1734144631979,-22496.66344151,0.000195,2]
[345306541,1734144631989,-2436.96,0.00019912,2]
[345306542,1734144631999,-200.0,0.00019929,2]
[345306543,1734144632008,-165.41,0.00020036,2]
[345306544,1734144632017,-187.14268857,0.00020173,2]
[345306545,1734144632027,-1003.11,0.00020186,2]
[345306546,1734144632036,-331.408,0.0002019,2]
[345306547,1734144632045,-153.0,0.00020196,2]
[345306548,1734144632056,-153.0,0.00020196,2]
[345306549,1734144632065,-153.0,0.00020196,2]
[345306550,1734144632079,-153.0,0.00020196,2]
[345306551,1734144632088,-153.0,0.00020196,2]
[345306552,1734144632097,-422.89,0.00020208,2]
[345306553,1734144632106,-164.01,0.00020216,30]
[345306554,1734144632115,-1013.03,0.00020223,2]
[345306555,1734144632124,-1008.41,0.00020223,2]
[345306556,1734144632133,-2558.264,0.00020232,2]
[345306557,1734144632142,-23900.0,0.00020233,2]
[345306558,1734144632151,-282.26,0.00020725,2]
[345306559,1734144632160,-42.46194183,0.0002088,2]
[345306560,1734144632171,-2957.53805817,0.0002088,2]
[345306561,1734144632180,-1019.72,0.00020885,2]
[345306562,1734144632189,-988.57,0.00020885,2]
[345306564,1734144632198,-998.62,0.00020885,2]
[345306566,1734144632208,-990.19,0.00020885,2]
[345306568,1734144632217,-2436.96,0.00020907,2]
[345306570,1734144632227,-975.36,0.00020964,2]
[345306571,1734144632236,-975.36,0.00020964,2]
[345306584,1734144632440,-4928.1900354,0.00020994,2]
[345306585,1734144632449,-161.36812628,0.00020995,2]
[345306586,1734144632458,-10975.94157627,0.00020995,2]
[345306592,1734144637858,-4530.91622373,0.00020995,2]
[345306593,1734144637868,-10000.0,0.00021,2]
[345306594,1734144637878,-151.08,0.00021,2]
[345306595,1734144637888,-300.49,0.00021,2]
[345306596,1734144637898,-151.77,0.00021,2]
[345306597,1734144637907,-150.22,0.00021,2]
[345306598,1734144637918,-220.44649183,0.00021016,2]
[345306599,1734144637927,-4000.0,0.00021035,3]
[345306600,1734144637937,-161.36812628,0.00021072,2]
[345306601,1734144637946,-252372.93667765,0.00021095,4]
[345306602,1734144637956,-7182.15928384,0.00021095,2]
[345306603,1734144637966,-500.0,0.00021095,3]
[345306604,1734144637976,-504.74947477,0.00021095,3]
[345306605,1734144637985,-501.7920549,0.00021095,3]
[345306606,1734144637995,-501.21754492,0.00021095,3]
[345306607,1734144638005,-500.68553861,0.00021095,3]
[345306608,1734144638015,-502.58432265,0.00021095,3]
[345306609,1734144638025,-504.18390005,0.00021095,3]
[345306610,1734144638034,-507.05009506,0.00021095,3]
[345306611,1734144638044,-500.0,0.00021095,3]
[345306612,1734144638054,-500.0,0.00021095,3]
[345306613,1734144638063,-500.0,0.00021095,3]
[345306614,1734144638073,-500.0,0.00021095,3]
[345306615,1734144638082,-641.23578815,0.00021095,3]
[345306616,1734144638091,-500.70076376,0.00021095,3]
[345306617,1734144638101,-365.99499273,0.00021095,3]
[345306618,1734144638110,-516.56011143,0.00021095,3]
[345306619,1734144638119,-306.21308935,0.00021095,3]
[345306621,1734144638129,-2000.0,0.00021095,2]
[345306623,1734144638138,-200.0,0.00021095,2]
[345306624,1734144638147,-500.0,0.00021095,3]
[345306625,1734144638156,-500.0,0.00021095,3]
[345306626,1734144638165,-500.0,0.00021095,3]
[345306627,1734144638174,-500.0,0.00021095,3]
[345306628,1734144638184,-397.90361994,0.00021095,3]
[345306629,1734144638194,-644.96,0.00021095,3]
[345306630,1734144638203,-644.96,0.00021095,3]
[345306631,1734144638212,-500.0,0.00021095,3]
[345306632,1734144638221,-500.0,0.00021095,3]
[345306633,1734144638234,-500.0,0.00021095,3]
[345306634,1734144638243,-500.0,0.00021095,3]
[345306635,1734144638253,-500.0,0.00021095,3]
[345306636,1734144638262,-500.0,0.00021095,3]
[345306637,1734144638275,-500.0,0.00021095,3]
[345306638,1734144638285,-500.0,0.00021095,3]
[345306639,1734144638296,-337.45533074,0.00021095,3]
[345306640,1734144638306,-500.0,0.00021095,3]
[345306641,1734144638317,-500.0,0.00021095,3]
[345306642,1734144638326,-500.0,0.00021095,3]
[345306643,1734144638336,-576.8,0.00021095,3]
[345306644,1734144638346,-777.99,0.00021095,3]
[345306645,1734144638355,-777.99,0.00021095,3]
[345306646,1734144638365,-500.0,0.00021095,3]
[345306647,1734144638374,-500.0,0.00021095,3]
[345306649,1734144638383,-500.0,0.00021095,3]
[345306650,1734144638393,-500.0,0.00021095,3]
[345306651,1734144638402,-500.0,0.00021095,3]
[345306652,1734144638411,-500.0,0.00021095,3]
[345306653,1734144638421,-500.0,0.00021095,3]
[345306654,1734144638430,-500.0,0.00021095,3]
[345306655,1734144638439,-504.33674621,0.00021095,3]
[345306656,1734144638449,-500.0,0.00021095,3]
[345306657,1734144638459,-500.0,0.00021095,3]
[345306658,1734144638468,-500.0,0.00021095,3]
[345306659,1734144638477,-500.0,0.00021095,3]
[345306660,1734144638487,-500.0,0.00021095,3]
[345306661,1734144638497,-500.0,0.00021095,3]
[345306662,1734144638506,-503.91207703,0.00021095,3]
[345306663,1734144638515,-500.0,0.00021095,3]
[345306664,1734144638526,-500.0,0.00021095,3]
[345306665,1734144638537,-502.24339177,0.00021095,3]
[345306666,1734144638547,-500.0,0.00021095,3]
[345306667,1734144638558,-500.0,0.00021095,3]
[345306668,1734144638570,-371.04538447,0.00021095,3]
[345306669,1734144638579,-500.0,0.00021095,3]
[345306670,1734144638589,-642.36,0.00021095,3]
[345306671,1734144638599,-590.26,0.00021095,3]
[345306672,1734144638609,-590.26,0.00021095,3]
[345306673,1734144638618,-500.0,0.00021095,3]
[345306674,1734144638627,-500.0,0.00021095,3]
[345306675,1734144638636,-500.0,0.00021095,3]
[345306676,1734144638645,-500.0,0.00021095,3]
[345306677,1734144638655,-500.0,0.00021095,3]
[345306678,1734144638664,-500.0,0.00021095,3]
[345306679,1734144638674,-500.0,0.00021095,3]
[345306680,1734144638685,-500.0,0.00021095,3]
[345306681,1734144638694,-500.0,0.00021095,3]
[345306682,1734144638703,-500.0,0.00021095,3]
[345306683,1734144638712,-500.0,0.00021095,3]
[345306684,1734144638721,-500.0,0.00021095,3]
[345306685,1734144638731,-500.0,0.00021095,3]
[345306686,1734144638741,-500.0,0.00021095,3]
[345306687,1734144638750,-500.0,0.00021095,3]
[345306688,1734144638760,-500.0,0.00021095,3]
[345306689,1734144638768,-500.0,0.00021095,3]
[345306690,1734144638779,-500.0,0.00021095,3]
[345306691,1734144638790,-500.0,0.00021095,3]
[345306692,1734144638799,-500.0,0.00021095,3]
[345306693,1734144638810,-500.0,0.00021095,3]
[345306694,1734144638820,-500.0,0.00021095,3]
[345306695,1734144638829,-500.0,0.00021095,3]
[345306696,1734144638838,-500.0,0.00021095,3]
[345306697,1734144638847,-500.0,0.00021095,3]
[345306698,1734144638856,-500.0,0.00021095,3]
[345306699,1734144638865,-500.0,0.00021095,3]
[345306700,1734144638874,-500.0,0.00021095,3]
[345306701,1734144638884,-500.0,0.00021095,3]
[345306702,1734144638893,-1000.0,0.00021095,2]
[345306703,1734144638902,-500.0,0.00021095,3]
[345306704,1734144638911,-500.0,0.00021095,2]
[345306705,1734144638921,-500.0,0.00021095,3]
[345306706,1734144638930,-500.0,0.00021095,3]
[345306707,1734144638939,-500.0,0.00021095,3]
[345306708,1734144638948,-500.0,0.00021095,3]
[345306709,1734144638957,-500.0,0.00021095,3]
[345306710,1734144638966,-500.0,0.00021095,3]
[345306711,1734144638976,-500.0,0.00021095,3]
[345306712,1734144638985,-500.0,0.00021095,3]
[345306713,1734144638995,-500.0,0.00021095,3]
[345306714,1734144639004,-500.0,0.00021095,3]
[345306715,1734144639013,-500.0,0.00021095,3]
[345306716,1734144639022,-501.18644572,0.00021095,3]
[345306717,1734144639032,-500.0,0.00021095,3]
[345306718,1734144639041,-500.0,0.00021095,3]
[345306719,1734144639050,-500.0,0.00021095,3]
[345306720,1734144639061,-262.92,0.00021095,3]
[345306721,1734144639071,-500.0,0.00021095,3]
[345306722,1734144639080,-500.0,0.00021095,3]
[345306723,1734144639089,-237.95968458,0.00021095,3]
[345306724,1734144639098,-500.0,0.00021095,3]
[345306725,1734144639107,-500.0,0.00021095,3]
[345306726,1734144639116,-500.0,0.00021095,3]
[345306727,1734144639125,-500.0,0.00021095,3]
[345306728,1734144639135,-500.0,0.00021095,3]
[345306729,1734144639144,-500.0,0.00021095,3]
[345306730,1734144639154,-237.26,0.00021095,3]
[345306731,1734144639163,-500.0,0.00021095,3]
[345306732,1734144639172,-500.0,0.00021095,3]
[345306733,1734144639181,-500.0,0.00021095,3]
[345306734,1734144639190,-500.0,0.00021095,3]
[345306735,1734144639200,-500.0,0.00021095,3]
[345306736,1734144639210,-500.0,0.00021095,3]
[345306737,1734144639219,-500.0,0.00021095,3]
[345306738,1734144639228,-500.0,0.00021095,3]
[345306739,1734144639237,-500.0,0.00021095,3]
[345306740,1734144639246,-500.0,0.00021095,3]
[345306741,1734144639255,-500.0,0.00021095,3]
[345306742,1734144639265,-930.34286613,0.00021095,2]
[345306743,1734144639277,-178.35,0.00021095,3]
[345306744,1734144639286,-500.0,0.00021095,3]
[345306745,1734144639295,-500.0,0.00021095,3]
[345306746,1734144639305,-200.0,0.00021095,2]
[345306747,1734144639316,-500.0,0.00021095,3]
[345306748,1734144639325,-500.0,0.00021095,3]
[345306749,1734144639336,-500.0,0.00021095,3]
[345306750,1734144639347,-400.33750311,0.00021095,2]
[345306751,1734144639356,-500.0,0.00021095,3]
[345306752,1734144639365,-500.0,0.00021095,3]
[345306753,1734144639374,-180.87841813,0.00021095,3]
[345306754,1734144639383,-500.0,0.00021095,3]
[345306755,1734144639392,-500.0,0.00021095,3]
[345306756,1734144639402,-500.0,0.00021095,3]
[345306757,1734144639411,-500.0,0.00021095,3]
[345306758,1734144639420,-504.12083457,0.00021095,3]
[345306759,1734144639430,-500.0,0.00021095,3]
[345306760,1734144639439,-500.0,0.00021095,3]
[345306761,1734144639448,-500.0,0.00021095,3]
[345306762,1734144639458,-502.47494504,0.00021095,3]
[345306763,1734144639468,-500.0,0.00021095,3]
[345306764,1734144639477,-500.0,0.00021095,3]
[345306765,1734144639486,-500.0,0.00021095,3]
[345306766,1734144639495,-500.0,0.00021095,3]
[345306767,1734144639504,-500.0,0.00021095,3]
[345306768,1734144639514,-500.0,0.00021095,3]
[345306770,1734144639523,-500.0,0.00021095,3]
[345306771,1734144639532,-500.0,0.00021095,3]
[345306772,1734144639541,-500.0,0.00021095,3]
[345306773,1734144639550,-500.0,0.00021095,3]
[345306774,1734144639559,-500.0,0.00021095,3]
[345306775,1734144639569,-500.0,0.00021095,3]
[345306776,1734144639579,-503.16606636,0.00021095,3]
[345306777,1734144639588,-500.0,0.00021095,3]
[345306778,1734144639598,-500.0,0.00021095,3]
[345306779,1734144639607,-500.0,0.00021095,3]
[345306780,1734144639617,-500.0,0.00021095,3]
[345306781,1734144639626,-502.45725301,0.00021095,3]
[345306782,1734144639635,-500.0,0.00021095,3]
[345306783,1734144639644,-500.0,0.00021095,3]
[345306784,1734144639654,-500.0,0.00021095,3]
[345306785,1734144639663,-460.0,0.00021095,3]
[345306786,1734144639672,-500.0,0.00021095,3]
[345306787,1734144639681,-503.44676086,0.00021095,3]
[345306788,1734144639691,-500.0,0.00021095,3]
[345306789,1734144639700,-500.0,0.00021095,3]
[345306790,1734144639709,-501.75719534,0.00021095,3]
[345306791,1734144639718,-500.0,0.00021095,3]
[345306792,1734144639728,-500.0,0.00021095,3]
[345306793,1734144639737,-500.0,0.00021095,3]
[345306794,1734144639746,-500.0,0.00021095,3]
[345306795,1734144639755,-500.0,0.00021095,3]
[345306796,1734144639764,-500.0,0.00021095,3]
[345306797,1734144639773,-500.0,0.00021095,3]
[345306798,1734144639782,-500.0,0.00021095,3]
[345306799,1734144639792,-500.0,0.00021095,3]
[345306800,1734144639801,-500.0,0.00021095,3]
[345306801,1734144639810,-500.0,0.00021095,3]
[345306802,1734144639820,-500.0,0.00021095,3]
[345306803,1734144639829,-500.0,0.00021095,3]
[345306804,1734144639838,-500.0,0.00021095,3]
[345306805,1734144639847,-500.0,0.00021095,3]
[345306806,1734144639855,-500.0,0.00021095,3]
[345306807,1734144639864,-500.0,0.00021095,3]
[345306808,1734144639873,-500.0,0.00021095,3]
[345306809,1734144639883,-500.0,0.00021095,3]
[345306810,1734144639892,-500.0,0.00021095,3]
[345306811,1734144639902,-503.24794417,0.00021095,3]
[345306812,1734144639911,-500.0,0.00021095,3]
[345306813,1734144639920,-500.0,0.00021095,3]
[345306814,1734144639929,-500.0,0.00021095,3]
[345306815,1734144639938,-357.43,0.00021095,3]
[345306816,1734144639947,-500.0,0.00021095,3]
[345306817,1734144639957,-500.0,0.00021095,3]
[345306818,1734144639966,-500.0,0.00021095,3]
[345306819,1734144639975,-501.80436312,0.00021095,3]
[345306820,1734144639984,-500.0,0.00021095,3]
[345306821,1734144639992,-500.0,0.00021095,3]
[345306822,1734144640002,-500.0,0.00021095,3]
[345306823,1734144640011,-500.0,0.00021095,3]
[345306824,1734144640020,-500.0,0.00021095,3]
[345306825,1734144640030,-500.0,0.00021095,3]
[345306826,1734144640040,-500.0,0.00021095,3]
[345306827,1734144640049,-490.0,0.00021095,3]
[345306828,1734144640058,-500.0,0.00021095,3]
[345306829,1734144640067,-500.0,0.00021095,3]
[345306830,1734144640077,-500.0,0.00021095,3]
[345306831,1734144640086,-500.0,0.00021095,3]
[345306832,1734144640095,-500.0,0.00021095,3]
[345306833,1734144640104,-500.0,0.00021095,3]
[345306834,1734144640114,-500.0,0.00021095,3]